Publisher Label,Publisher URI,"Supplier ID","Supplier","Invoice No.","Amount £","Purpose","Transaction Number","Payment Date","Organisational Unit","Cost Centre(T)","Internal Category Number"
"Wolverhampton City Council","http://opendatacommunities.org/id/metropolitan-district-council/wolverhampton","717743","Sanderson Funerals","HMCH 030","436.00","Hire of Vehicles","130247934","20/03/2019","Public Service Reform","Coroners Service","R3200"
"Wolverhampton City Council","http://opendatacommunities.org/id/metropolitan-district-council/wolverhampton","717743","Sanderson Funerals","HMCC 030","683.96","Hire of Vehicles","130247932","20/03/2019","Public Service Reform","Coroners Service","R3200"
"Wolverhampton City Council","http://opendatacommunities.org/id/metropolitan-district-council/wolverhampton","717743","Sanderson Funerals","HMCC 032","555.00","Hire of Vehicles","130247933","20/03/2019","Public Service Reform","Coroners Service","R3200"
"Wolverhampton City Council","http://opendatacommunities.org/id/metropolitan-district-council/wolverhampton","717743","Sanderson Funerals","HMCH 033","374.64","Hire of Vehicles","130247935","20/03/2019","Public Service Reform","Coroners Service","R3200"
"Wolverhampton City Council","http://opendatacommunities.org/id/metropolitan-district-council/wolverhampton","717763","ACRE Development Consulting","D1060","885.00","Services - Professional Fees","130246286","27/03/2019","City Development","City Development  - Core Team","R4400"
"Wolverhampton City Council","http://opendatacommunities.org/id/metropolitan-district-council/wolverhampton","717769","Hilton Main Lighting & Connections Ltd","620 - invoive","840.00","Construction and Conversion","130247912","15/03/2019","-","Safety Programme","C1100"
"Wolverhampton City Council","http://opendatacommunities.org/id/metropolitan-district-council/wolverhampton","717845","Philip Kolvin QC","143247","2,450.00","Services - Professional Fees","130245159","20/03/2019","Licensing","Private Hire Vehicles","R4400"
"Wolverhampton City Council","http://opendatacommunities.org/id/metropolitan-district-council/wolverhampton","717851","Norton Hill School","P20221720190322","600.00","Grant Payments to Individuals","190577575","27/03/2019","Inclusion Support","Pupil Premium","R6402"
"Wolverhampton City Council","http://opendatacommunities.org/id/metropolitan-district-council/wolverhampton","717851","Norton Hill School","P20221720190322","600.00","Grant Payments to Individuals","190577575","27/03/2019","Inclusion Support","Pupil Premium","R6402"
"Wolverhampton City Council","http://opendatacommunities.org/id/metropolitan-district-council/wolverhampton","717852","Wylde Green Primary School","P20221720190322","600.00","Grant Payments to Individuals","190577575","27/03/2019","Inclusion Support","Pupil Premium","R6402"
"Wolverhampton City Council","http://opendatacommunities.org/id/metropolitan-district-council/wolverhampton","717852","Wylde Green Primary School","P20221720190322","600.00","Grant Payments to Individuals","190577575","27/03/2019","Inclusion Support","Pupil Premium","R6402"
"Wolverhampton City Council","http://opendatacommunities.org/id/metropolitan-district-council/wolverhampton","717863","Donna Widdows","NEF Spring 19 March","153.00","TPP - Private Nursery Education Funding","190576178","20/03/2019","Early Years","Early Years Universal Entitlement for 3 and 4 Year Olds","R5035"
"Wolverhampton City Council","http://opendatacommunities.org/id/metropolitan-district-council/wolverhampton","717863","Donna Widdows","6MARCH","340.00","TPP - Child Care provided for client","130245826","22/03/2019","Adult Education","Discretionary Fund","R5034"
"Wolverhampton City Council","http://opendatacommunities.org/id/metropolitan-district-council/wolverhampton","717887","Hamstead Hall Academy","P20221720190322","600.00","Grant Payments to Individuals","190577575","27/03/2019","Inclusion Support","Pupil Premium","R6402"
"Wolverhampton City Council","http://opendatacommunities.org/id/metropolitan-district-council/wolverhampton","717933","Derby Comm. Health Ser. NHS Found. Trust","11902363 Dec 18","135.20","TPP - Public Health Contracts","190570967","08/03/2019","Starting and Developing Well","Sexual Health","R5060"
"Wolverhampton City Council","http://opendatacommunities.org/id/metropolitan-district-council/wolverhampton","717995","Barnardo Services Limited","242002964","2,500.00","TPP - Short Breaks","130244713","13/03/2019","Children & Young People In Care","Short Breaks","R5500"
"Wolverhampton City Council","http://opendatacommunities.org/id/metropolitan-district-council/wolverhampton","717999","Mark Finnis Training & Consultancy Ltd","RPMFTC587","3,204.35","Training Expenses","130246287","08/03/2019","Safeguarding","Safeguarding Partnership Board","R1650"
"Wolverhampton City Council","http://opendatacommunities.org/id/metropolitan-district-council/wolverhampton","718086","St Edmund�s Catholic Academy","SEN Mainstream Top Ups Spring Term 19 - St Edmund�s Catholic Academy","9,328.76","Grant Payments","190570883","08/03/2019","Central Education","High Needs Top Up Academies","R4700"
"Wolverhampton City Council","http://opendatacommunities.org/id/metropolitan-district-council/wolverhampton","718086","St Edmund�s Catholic Academy","SEN Mainstream Top Ups Autumn Term 18 - St Edmund�s Catholic Academy","10,763.96","Grant Payments","190570882","08/03/2019","Central Education","High Needs Top Up Academies","R4700"
"Wolverhampton City Council","http://opendatacommunities.org/id/metropolitan-district-council/wolverhampton","718086","St Edmund�s Catholic Academy","P20221720190322","600.00","Grant Payments to Individuals","190577575","27/03/2019","Inclusion Support","Pupil Premium","R6402"
"Wolverhampton City Council","http://opendatacommunities.org/id/metropolitan-district-council/wolverhampton","718086","St Edmund�s Catholic Academy","P20221720190322","600.00","Grant Payments to Individuals","190577575","27/03/2019","Inclusion Support","Pupil Premium","R6402"
"Wolverhampton City Council","http://opendatacommunities.org/id/metropolitan-district-council/wolverhampton","718086","St Edmund�s Catholic Academy","P20221720190322","600.00","Grant Payments to Individuals","190577575","27/03/2019","Inclusion Support","Pupil Premium","R6402"
"Wolverhampton City Council","http://opendatacommunities.org/id/metropolitan-district-council/wolverhampton","718086","St Edmund�s Catholic Academy","P20221720190322","600.00","Grant Payments to Individuals","190577575","27/03/2019","Inclusion Support","Pupil Premium","R6402"
"Wolverhampton City Council","http://opendatacommunities.org/id/metropolitan-district-council/wolverhampton","718108","BTE Plant Sales Ltd","182070","1.46","Equipment - Purchase","190575115","20/03/2019","Fleet Services","Fleet Management","R4000"
"Wolverhampton City Council","http://opendatacommunities.org/id/metropolitan-district-council/wolverhampton","718108","BTE Plant Sales Ltd","182070","4.67","Equipment - Purchase","190575115","20/03/2019","Fleet Services","Fleet Management","R4000"
"Wolverhampton City Council","http://opendatacommunities.org/id/metropolitan-district-council/wolverhampton","718108","BTE Plant Sales Ltd","182070","3.30","Equipment - Purchase","190575115","20/03/2019","Fleet Services","Fleet Management","R4000"
"Wolverhampton City Council","http://opendatacommunities.org/id/metropolitan-district-council/wolverhampton","718108","BTE Plant Sales Ltd","182070","2.06","Equipment - Purchase","190575115","20/03/2019","Fleet Services","Fleet Management","R4000"
"Wolverhampton City Council","http://opendatacommunities.org/id/metropolitan-district-council/wolverhampton","718108","BTE Plant Sales Ltd","182070","1.19","Equipment - Purchase","190575115","20/03/2019","Fleet Services","Fleet Management","R4000"
"Wolverhampton City Council","http://opendatacommunities.org/id/metropolitan-district-council/wolverhampton","718108","BTE Plant Sales Ltd","181918","156.11","Equipment - Purchase","190571832","13/03/2019","Fleet Services","Fleet Management","R4000"
"Wolverhampton City Council","http://opendatacommunities.org/id/metropolitan-district-council/wolverhampton","718108","BTE Plant Sales Ltd","182129","64.94","Equipment - Purchase","190575116","20/03/2019","Fleet Services","Fleet Management","R4000"
"Wolverhampton City Council","http://opendatacommunities.org/id/metropolitan-district-council/wolverhampton","718114","MK Surveys","23661","2,340.00","Construction and Conversion","130244834","06/03/2019","-","Bilston Urban Village","C1100"
"Wolverhampton City Council","http://opendatacommunities.org/id/metropolitan-district-council/wolverhampton","718137","Melanie Tomlinson","GHG11","300.00","Materials for resale","130244517","13/03/2019","Visitor Economy","Art Gallery Shop","R4008"
"Wolverhampton City Council","http://opendatacommunities.org/id/metropolitan-district-council/wolverhampton","718215","Straight Manufacturing Ltd","0000042694","16.65","Services - Fees and Charges","130247892","20/03/2019","Waste and Recycling Service","Waste Collection and Recycling Service - General","R4401"
"Wolverhampton City Council","http://opendatacommunities.org/id/metropolitan-district-council/wolverhampton","718234","ADI UK Limited","32747","1,150.00","Marketing \ Non-staff advertising","130248990","27/03/2019","Corporate Communications","Communications & Marketing - General","R4317"
"Wolverhampton City Council","http://opendatacommunities.org/id/metropolitan-district-council/wolverhampton","718292","First Aid Warehouse","391721","99.90","Materials","130243729","06/03/2019","Facilities Management","Civic Centre","R4007"
"Wolverhampton City Council","http://opendatacommunities.org/id/metropolitan-district-council/wolverhampton","718292","First Aid Warehouse","393468","10.10","Materials","130244714","13/03/2019","Specialist Support","Vulnerable Young Persons Team","R4007"
"Wolverhampton City Council","http://opendatacommunities.org/id/metropolitan-district-council/wolverhampton","718292","First Aid Warehouse","392182","0.85","Materials","130243932","06/03/2019","Specialist Support","Upper Pendeford Farm Short Breaks Centre","R4007"
"Wolverhampton City Council","http://opendatacommunities.org/id/metropolitan-district-council/wolverhampton","718292","First Aid Warehouse","392182","1.10","Materials","130243932","06/03/2019","Specialist Support","Upper Pendeford Farm Short Breaks Centre","R4007"
"Wolverhampton City Council","http://opendatacommunities.org/id/metropolitan-district-council/wolverhampton","718292","First Aid Warehouse","392182","5.00","Materials","130243932","06/03/2019","Specialist Support","Upper Pendeford Farm Short Breaks Centre","R4007"
"Wolverhampton City Council","http://opendatacommunities.org/id/metropolitan-district-council/wolverhampton","718292","First Aid Warehouse","392182","17.40","Materials","130243932","06/03/2019","Specialist Support","Upper Pendeford Farm Short Breaks Centre","R4007"
"Wolverhampton City Council","http://opendatacommunities.org/id/metropolitan-district-council/wolverhampton","718292","First Aid Warehouse","392932","27.84","Materials","130244364","13/03/2019","Leisure Services","Bert Williams Leisure Centre","R4007"
"Wolverhampton City Council","http://opendatacommunities.org/id/metropolitan-district-council/wolverhampton","718292","First Aid Warehouse","392932","11.34","Materials","130244364","13/03/2019","Leisure Services","Bert Williams Leisure Centre","R4007"
"Wolverhampton City Council","http://opendatacommunities.org/id/metropolitan-district-council/wolverhampton","718292","First Aid Warehouse","395456","2.15","Materials","130245940","27/03/2019","Older People Provider Services","Bradley Lodge Resource Centre","R4007"
"Wolverhampton City Council","http://opendatacommunities.org/id/metropolitan-district-council/wolverhampton","718292","First Aid Warehouse","395456","8.80","Materials","130245940","27/03/2019","Older People Provider Services","Bradley Lodge Resource Centre","R4007"
"Wolverhampton City Council","http://opendatacommunities.org/id/metropolitan-district-council/wolverhampton","718292","First Aid Warehouse","396399","10.80","Materials","130246951","27/03/2019","Learning Disability Provider","Community Pathways","R4007"
"Wolverhampton City Council","http://opendatacommunities.org/id/metropolitan-district-council/wolverhampton","718292","First Aid Warehouse","395785","191.68","Materials","130246147","27/03/2019","Environmental Maintenance","Northicote Farm","R4007"
"Wolverhampton City Council","http://opendatacommunities.org/id/metropolitan-district-council/wolverhampton","718292","First Aid Warehouse","391453","19.50","Materials","130243323","01/03/2019","Environmental Maintenance","Parks - Ranger Service","R4007"
"Wolverhampton City Council","http://opendatacommunities.org/id/metropolitan-district-council/wolverhampton","718304","St Johns B&B - Tunbridge Property LTD","305","2,700.00","No Recourse to Public Funds","190569070","06/03/2019","Strengthening Families","Child Assessment Team","R6314"
"Wolverhampton City Council","http://opendatacommunities.org/id/metropolitan-district-council/wolverhampton","718304","St Johns B&B - Tunbridge Property LTD","301","250.00","No Recourse to Public Funds","190569071","06/03/2019","Strengthening Families","Child Assessment Team","R6314"
"Wolverhampton City Council","http://opendatacommunities.org/id/metropolitan-district-council/wolverhampton","718304","St Johns B&B - Tunbridge Property LTD","P20114320190311","100.00","TPP - Accommodation","190572217","13/03/2019","Community Financial Support","Destitute Plus","R5603"
"Wolverhampton City Council","http://opendatacommunities.org/id/metropolitan-district-council/wolverhampton","718304","St Johns B&B - Tunbridge Property LTD","P20049820190305","100.00","TPP - Accommodation","190570257","06/03/2019","Community Financial Support","Destitute Plus","R5603"
"Wolverhampton City Council","http://opendatacommunities.org/id/metropolitan-district-council/wolverhampton","718321","London Hire Ltd","INV00041478","840.00","Hire of Vehicles","190579372","27/03/2019","Fleet Services","Fleet Management","R3200"
"Wolverhampton City Council","http://opendatacommunities.org/id/metropolitan-district-council/wolverhampton","718321","London Hire Ltd","INV00041477","300.00","Hire of Vehicles","190579371","27/03/2019","Fleet Services","Fleet Management","R3200"
"Wolverhampton City Council","http://opendatacommunities.org/id/metropolitan-district-council/wolverhampton","718321","London Hire Ltd","INV00041479","840.00","Hire of Vehicles","190579373","27/03/2019","Fleet Services","Fleet Management","R3200"
"Wolverhampton City Council","http://opendatacommunities.org/id/metropolitan-district-council/wolverhampton","718321","London Hire Ltd","INV00041476","300.00","Hire of Vehicles","190579370","27/03/2019","Fleet Services","Fleet Management","R3200"
"Wolverhampton City Council","http://opendatacommunities.org/id/metropolitan-district-council/wolverhampton","718321","London Hire Ltd","INV00041480","840.00","Hire of Vehicles","190579374","27/03/2019","Fleet Services","Fleet Management","R3200"
"Wolverhampton City Council","http://opendatacommunities.org/id/metropolitan-district-council/wolverhampton","718349","Dr Shaheen Yousaf Chaudhry","DOLS0219-A","1,452.00","Services - DoLS Doctors Fees","130244365","13/03/2019","Safeguarding","MCA General","R4416"
"Wolverhampton City Council","http://opendatacommunities.org/id/metropolitan-district-council/wolverhampton","718349","Dr Shaheen Yousaf Chaudhry","DOLS0119-D","6,337.00","Services - DoLS Doctors Fees","130243564","06/03/2019","Safeguarding","MCA General","R4416"
"Wolverhampton City Council","http://opendatacommunities.org/id/metropolitan-district-council/wolverhampton","718366","West Midlands Combined Authority","654398","5,000.00","Grant Payments","130243324","06/03/2019","Healthier Places Service","Public Health - Healthier Places Team","R4700"
"Wolverhampton City Council","http://opendatacommunities.org/id/metropolitan-district-council/wolverhampton","718367","Certas Energy UK","1989967","81.60","Equipment - Purchase","190572443","13/03/2019","Fleet Services","Fleet Management","R4000"
"Wolverhampton City Council","http://opendatacommunities.org/id/metropolitan-district-council/wolverhampton","718367","Certas Energy UK","1999082","1,071.60","Heating Oil","130244367","06/03/2019","Highways Maintenance","Patching","R2102"
"Wolverhampton City Council","http://opendatacommunities.org/id/metropolitan-district-council/wolverhampton","718367","Certas Energy UK","21334311","561.86","Heating Oil","130246952","27/03/2019","Waste and Recycling Service","Anchor Lane Civic Amenity Site","R2102"
"Wolverhampton City Council","http://opendatacommunities.org/id/metropolitan-district-council/wolverhampton","718367","Certas Energy UK","2073766","4,525.74","Equipment - Purchase","190579264","27/03/2019","Fleet Services","Fleet Management","R4000"
"Wolverhampton City Council","http://opendatacommunities.org/id/metropolitan-district-council/wolverhampton","718367","Certas Energy UK","1995196","1,071.60","Heating Oil","130244366","01/03/2019","Highways Maintenance","Patching","R2102"
"Wolverhampton City Council","http://opendatacommunities.org/id/metropolitan-district-council/wolverhampton","718367","Certas Energy UK","2111932","1,390.00","Heating Oil","130246519","27/03/2019","Environmental Maintenance","Ground Maintenance East","R2102"
"Wolverhampton City Council","http://opendatacommunities.org/id/metropolitan-district-council/wolverhampton","718367","Certas Energy UK","2111932","13.25","Heating Oil","130246519","27/03/2019","Environmental Maintenance","Ground Maintenance East","R2102"
"Wolverhampton City Council","http://opendatacommunities.org/id/metropolitan-district-council/wolverhampton","718367","Certas Energy UK","2073767","1,068.32","Equipment - Purchase","190579265","27/03/2019","Fleet Services","Fleet Management","R4000"
"Wolverhampton City Council","http://opendatacommunities.org/id/metropolitan-district-council/wolverhampton","718367","Certas Energy UK","1971351","736.39","Heating Oil","130246518","06/03/2019","Environmental Maintenance","Ground Maintenance East","R2102"
"Wolverhampton City Council","http://opendatacommunities.org/id/metropolitan-district-council/wolverhampton","718376","Westbury Health Limited","DA022019","561.00","Services - Professional Fees","130246953","20/03/2019","Strengthening Families","Court Team","R4400"
"Wolverhampton City Council","http://opendatacommunities.org/id/metropolitan-district-council/wolverhampton","718380","Green Machines Sweepers UK Ltd","109973","128.22","Equipment - Purchase","190574210","15/03/2019","Fleet Services","Fleet Management","R4000"
"Wolverhampton City Council","http://opendatacommunities.org/id/metropolitan-district-council/wolverhampton","718380","Green Machines Sweepers UK Ltd","109973","17.84","Equipment - Purchase","190574210","15/03/2019","Fleet Services","Fleet Management","R4000"
"Wolverhampton City Council","http://opendatacommunities.org/id/metropolitan-district-council/wolverhampton","718380","Green Machines Sweepers UK Ltd","109973","24.23","Equipment - Purchase","190574210","15/03/2019","Fleet Services","Fleet Management","R4000"
"Wolverhampton City Council","http://opendatacommunities.org/id/metropolitan-district-council/wolverhampton","718380","Green Machines Sweepers UK Ltd","109973","65.42","Equipment - Purchase","190574210","15/03/2019","Fleet Services","Fleet Management","R4000"
"Wolverhampton City Council","http://opendatacommunities.org/id/metropolitan-district-council/wolverhampton","718429","St Bartholomew�s CE Academy Trust","EYPP Spring 2019","381.60","TPP - Private Nursery Education Funding","190578180","27/03/2019","Early Years","Early Years Pupil Premium","R5035"
"Wolverhampton City Council","http://opendatacommunities.org/id/metropolitan-district-council/wolverhampton","718429","St Bartholomew�s CE Academy Trust","SEN Mainstream Top Ups Autumn Term 18 - St Bartholomew�s CE Academy","7,175.97","Grant Payments","190570923","08/03/2019","Central Education","High Needs Top Up Academies","R4700"
"Wolverhampton City Council","http://opendatacommunities.org/id/metropolitan-district-council/wolverhampton","718429","St Bartholomew�s CE Academy Trust","SEN Mainstream Top Ups Spring Term 19 - St Bartholomew�s CE Academy","7,941.41","Grant Payments","190570924","08/03/2019","Central Education","High Needs Top Up Academies","R4700"
"Wolverhampton City Council","http://opendatacommunities.org/id/metropolitan-district-council/wolverhampton","718450","Furnace Mill Fishery Ltd","240","5,214.00","R&M - Departmental response (external)","130244259","13/03/2019","Environmental Maintenance","Parks / Open Spaces - Repairs & Maintenance","R2003"
"Wolverhampton City Council","http://opendatacommunities.org/id/metropolitan-district-council/wolverhampton","718450","Furnace Mill Fishery Ltd","241","4,352.70","R&M - Departmental planned (external)","130244260","13/03/2019","Environmental Maintenance","Parks / Open Spaces - Repairs & Maintenance","R2001"
"Wolverhampton City Council","http://opendatacommunities.org/id/metropolitan-district-council/wolverhampton","718450","Furnace Mill Fishery Ltd","241","3,223.00","R&M - Departmental planned (external)","130244260","13/03/2019","Environmental Maintenance","Parks / Open Spaces - Repairs & Maintenance","R2001"
"Wolverhampton City Council","http://opendatacommunities.org/id/metropolitan-district-council/wolverhampton","718450","Furnace Mill Fishery Ltd","245","5,200.00","R&M - Departmental response (external)","130244715","15/03/2019","Environmental Maintenance","Parks - South West Area Management","R2003"
"Wolverhampton City Council","http://opendatacommunities.org/id/metropolitan-district-council/wolverhampton","718450","Furnace Mill Fishery Ltd","246","5,097.40","R&M - Departmental planned (external)","130244716","22/03/2019","Environmental Maintenance","Parks / Open Spaces - Repairs & Maintenance","R2001"
"Wolverhampton City Council","http://opendatacommunities.org/id/metropolitan-district-council/wolverhampton","718452","Baby Sienna Ltd","TFT Spring 2019 Inst 2","2,433.46","TPP - Private Nursery Education Funding","190576181","20/03/2019","Early Years","Early Years Entitlement Funding for Disadvantaged 2 Year Olds","R5035"
"Wolverhampton City Council","http://opendatacommunities.org/id/metropolitan-district-council/wolverhampton","718452","Baby Sienna Ltd","NEF Spring 2019 INST 2","7,407.33","TPP - Private Nursery Education Funding","190578170","27/03/2019","Early Years","Early Years Universal Entitlement for 3 and 4 Year Olds","R5035"
"Wolverhampton City Council","http://opendatacommunities.org/id/metropolitan-district-council/wolverhampton","718452","Baby Sienna Ltd","0119","511.50","TPP - Child Care provided for client","130242524","15/03/2019","Adult Education","Discretionary Fund","R5034"
"Wolverhampton City Council","http://opendatacommunities.org/id/metropolitan-district-council/wolverhampton","718499","ENER-G Combined Power Limited","19500564","1,085.65","R&M - Departmental planned (external)","130245663","20/03/2019","Corporate Asset Management","Central Utilities to Recharge","R2001"
"Wolverhampton City Council","http://opendatacommunities.org/id/metropolitan-district-council/wolverhampton","718536","Protel Health Limited","YYTDE345NN","4,166.80","Equipment - Purchase","130247364","27/03/2019","Independent Living Service","Telecare","R4000"
"Wolverhampton City Council","http://opendatacommunities.org/id/metropolitan-district-council/wolverhampton","718579","Target Information Systems Limited","SI-1324","3,500.00","Computing - Purchase of Software","130245533","15/03/2019","Procurement Services","Corporate Procurement Unit","R4531"
"Wolverhampton City Council","http://opendatacommunities.org/id/metropolitan-district-council/wolverhampton","718613","HOPE SERVICES","WOLSOC112018","32.00","Section 17","130247648","15/03/2019","Strengthening Families","CP Area 4- Bingley","R6403"
"Wolverhampton City Council","http://opendatacommunities.org/id/metropolitan-district-council/wolverhampton","718631","Midland Fuel Oil Supplies Ltd","1066670","974.85","Heating Oil","190578450","27/03/2019","Corporate Asset Management","Central Utilities to Recharge","R2102"
"Wolverhampton City Council","http://opendatacommunities.org/id/metropolitan-district-council/wolverhampton","718665","Mr William Douglas-Jones","RM/ECP008431","500.00","Services - Professional Fees","130245827","27/03/2019","Public Protection","Trading Standards","R4400"
"Wolverhampton City Council","http://opendatacommunities.org/id/metropolitan-district-council/wolverhampton","718665","Mr William Douglas-Jones","RM/ECP008431","312.50","Services - Professional Fees","130245827","27/03/2019","Public Protection","Trading Standards","R4400"
"Wolverhampton City Council","http://opendatacommunities.org/id/metropolitan-district-council/wolverhampton","718665","Mr William Douglas-Jones","INVWDJ56","850.00","Services - Professional Fees","130245371","15/03/2019","Licensing","Private Hire Drivers","R4400"
"Wolverhampton City Council","http://opendatacommunities.org/id/metropolitan-district-council/wolverhampton","718667","Dr R Mohindroo","029","127.58","Medical Fees","190577192","22/03/2019","Catering","Primary Schools Catering","R1400"
"Wolverhampton City Council","http://opendatacommunities.org/id/metropolitan-district-council/wolverhampton","718694","Katharine Ransom","TFT Spring 2019 Inst 2","377.28","TPP - Private Nursery Education Funding","190576181","20/03/2019","Early Years","Early Years Entitlement Funding for Disadvantaged 2 Year Olds","R5035"
"Wolverhampton City Council","http://opendatacommunities.org/id/metropolitan-district-council/wolverhampton","718694","Katharine Ransom","NEF Spring 2019 INST 2","1,224.00","TPP - Private Nursery Education Funding","190578170","27/03/2019","Early Years","Early Years Universal Entitlement for 3 and 4 Year Olds","R5035"
"Wolverhampton City Council","http://opendatacommunities.org/id/metropolitan-district-council/wolverhampton","718702","The National Teaching and Advisory Service","9832814","1,508.00","TPP - Alternative Provision of Education","130247649","15/03/2019","Special Educational Needs","Post 16 SEN Provision","R5037"
"Wolverhampton City Council","http://opendatacommunities.org/id/metropolitan-district-council/wolverhampton","718746","Helping Hands Tuition","004","75.00","Services - Professional Fees","130246520","08/03/2019","Inclusion Support","Pupil Premium","R4400"
"Wolverhampton City Council","http://opendatacommunities.org/id/metropolitan-district-council/wolverhampton","718837","East Park Academy","East Park Enhanced Funding Payment Jan to March 2019","1,000.00","Grant Payments","190575444","20/03/2019","Early Years","Early Years SEN Inclusion Fund","R4700"
"Wolverhampton City Council","http://opendatacommunities.org/id/metropolitan-district-council/wolverhampton","718837","East Park Academy","Rising 3�s TFT Places Funding Spring 2019","1,886.40","TPP - Private Nursery Education Funding","190576188","20/03/2019","Early Years","Early Years Entitlement Funding for Disadvantaged 2 Year Olds","R5035"
"Wolverhampton City Council","http://opendatacommunities.org/id/metropolitan-district-council/wolverhampton","718837","East Park Academy","SEN Mainstream Top Ups Autumn Term 18 - East Park Academy","7,335.44","Grant Payments","190570897","08/03/2019","Central Education","High Needs Top Up Academies","R4700"
"Wolverhampton City Council","http://opendatacommunities.org/id/metropolitan-district-council/wolverhampton","718837","East Park Academy","SEN Resource Base Spring Term 2019 - East Park Academy","17,932.20","Grant Payments","190577237","27/03/2019","Central Education","High Needs Top Up Academies","R4700"
"Wolverhampton City Council","http://opendatacommunities.org/id/metropolitan-district-council/wolverhampton","718837","East Park Academy","EYPP Spring 2019","2,098.80","TPP - Private Nursery Education Funding","190578180","27/03/2019","Early Years","Early Years Pupil Premium","R5035"
"Wolverhampton City Council","http://opendatacommunities.org/id/metropolitan-district-council/wolverhampton","718837","East Park Academy","P20221720190322","600.00","Grant Payments to Individuals","190577575","27/03/2019","Inclusion Support","Pupil Premium","R6402"
"Wolverhampton City Council","http://opendatacommunities.org/id/metropolitan-district-council/wolverhampton","718837","East Park Academy","SEN Mainstream Top Ups Spring Term 19 - East Park Academy","8,292.23","Grant Payments","190570898","08/03/2019","Central Education","High Needs Top Up Academies","R4700"
"Wolverhampton City Council","http://opendatacommunities.org/id/metropolitan-district-council/wolverhampton","718838","Manor Multi Academy Trust T/A Hill Avenue Academy","EYPP Spring 2019 Manor","1,049.40","TPP - Private Nursery Education Funding","190578186","27/03/2019","Early Years","Early Years Pupil Premium","R5035"
"Wolverhampton City Council","http://opendatacommunities.org/id/metropolitan-district-council/wolverhampton","718838","Manor Multi Academy Trust T/A Hill Avenue Academy","SEN Mainstream Top Ups Autumn Term 18 - Hill Avenue Academy","3,587.99","Grant Payments","190570905","08/03/2019","Central Education","High Needs Top Up Academies","R4700"
"Wolverhampton City Council","http://opendatacommunities.org/id/metropolitan-district-council/wolverhampton","718838","Manor Multi Academy Trust T/A Hill Avenue Academy","SEN Mainstream Top Ups Spring Term 19 - Hill Avenue Academy","4,146.12","Grant Payments","190570906","08/03/2019","Central Education","High Needs Top Up Academies","R4700"
"Wolverhampton City Council","http://opendatacommunities.org/id/metropolitan-district-council/wolverhampton","718838","Manor Multi Academy Trust T/A Hill Avenue Academy","P20221720190322","600.00","Grant Payments to Individuals","190577575","27/03/2019","Inclusion Support","Pupil Premium","R6402"
"Wolverhampton City Council","http://opendatacommunities.org/id/metropolitan-district-council/wolverhampton","718871","Midland Garage Equipment Ltd","1740","1,550.00","Equipment - Purchase","190578418","27/03/2019","Fleet Services","Fleet Management","R4000"
"Wolverhampton City Council","http://opendatacommunities.org/id/metropolitan-district-council/wolverhampton","718871","Midland Garage Equipment Ltd","1716","91.18","Services - Professional Fees","190579248","27/03/2019","Fleet Services","Fleet Management","R4400"
"Wolverhampton City Council","http://opendatacommunities.org/id/metropolitan-district-council/wolverhampton","718871","Midland Garage Equipment Ltd","1716","3.08","Services - Professional Fees","190579248","27/03/2019","Fleet Services","Fleet Management","R4400"
"Wolverhampton City Council","http://opendatacommunities.org/id/metropolitan-district-council/wolverhampton","718871","Midland Garage Equipment Ltd","1716","32.79","Services - Professional Fees","190579248","27/03/2019","Fleet Services","Fleet Management","R4400"
"Wolverhampton City Council","http://opendatacommunities.org/id/metropolitan-district-council/wolverhampton","718871","Midland Garage Equipment Ltd","1716","132.84","Services - Professional Fees","190579248","27/03/2019","Fleet Services","Fleet Management","R4400"
"Wolverhampton City Council","http://opendatacommunities.org/id/metropolitan-district-council/wolverhampton","718871","Midland Garage Equipment Ltd","1716","455.88","Services - Professional Fees","190579248","27/03/2019","Fleet Services","Fleet Management","R4400"
"Wolverhampton City Council","http://opendatacommunities.org/id/metropolitan-district-council/wolverhampton","718871","Midland Garage Equipment Ltd","1716","98.34","Services - Professional Fees","190579248","27/03/2019","Fleet Services","Fleet Management","R4400"
"Wolverhampton City Council","http://opendatacommunities.org/id/metropolitan-district-council/wolverhampton","718871","Midland Garage Equipment Ltd","1716","86.84","Services - Professional Fees","190579248","27/03/2019","Fleet Services","Fleet Management","R4400"
"Wolverhampton City Council","http://opendatacommunities.org/id/metropolitan-district-council/wolverhampton","718871","Midland Garage Equipment Ltd","1717","398.70","Services - Professional Fees","190578416","27/03/2019","Fleet Services","Fleet Management","R4400"
"Wolverhampton City Council","http://opendatacommunities.org/id/metropolitan-district-council/wolverhampton","718871","Midland Garage Equipment Ltd","1729","48.33","Equipment - R & M","190578417","27/03/2019","Fleet Services","Fleet Management","R4003"
"Wolverhampton City Council","http://opendatacommunities.org/id/metropolitan-district-council/wolverhampton","718871","Midland Garage Equipment Ltd","1729","228.33","Equipment - R & M","190578417","27/03/2019","Fleet Services","Fleet Management","R4003"
"Wolverhampton City Council","http://opendatacommunities.org/id/metropolitan-district-council/wolverhampton","718871","Midland Garage Equipment Ltd","1729","297.99","Equipment - R & M","190578417","27/03/2019","Fleet Services","Fleet Management","R4003"
"Wolverhampton City Council","http://opendatacommunities.org/id/metropolitan-district-council/wolverhampton","718894","Sam Mace","27032139","125.00","Services - Professional Fees","130244149","08/03/2019","Visitor Economy","Learning Programme -  ACE NPO WAG","R4400"
"Wolverhampton City Council","http://opendatacommunities.org/id/metropolitan-district-council/wolverhampton","718894","Sam Mace","27032137","75.00","Services - Professional Fees","130244147","08/03/2019","Visitor Economy","Art Galleries - Schools Art SLA Service","R4400"
"Wolverhampton City Council","http://opendatacommunities.org/id/metropolitan-district-council/wolverhampton","718894","Sam Mace","27032138","150.00","Services - Professional Fees","130244148","08/03/2019","Visitor Economy","Art Galleries - Schools Art SLA Service","R4400"
"Wolverhampton City Council","http://opendatacommunities.org/id/metropolitan-district-council/wolverhampton","718894","Sam Mace","27032140","100.00","Services - Professional Fees","130244150","08/03/2019","Visitor Economy","Art Galleries - Schools Art SLA Service","R4400"
"Wolverhampton City Council","http://opendatacommunities.org/id/metropolitan-district-council/wolverhampton","718894","Sam Mace","27032136","62.50","Services - Professional Fees","130244145","08/03/2019","Visitor Economy","Learning Programme -  ACE NPO WAG","R4400"
"Wolverhampton City Council","http://opendatacommunities.org/id/metropolitan-district-council/wolverhampton","718894","Sam Mace","27032146","125.00","Services - Professional Fees","130245664","22/03/2019","Visitor Economy","Education And Access","R4400"
"Wolverhampton City Council","http://opendatacommunities.org/id/metropolitan-district-council/wolverhampton","718894","Sam Mace","27032147","150.00","Services - Professional Fees","130245665","22/03/2019","Visitor Economy","Education And Access","R4400"
"Wolverhampton City Council","http://opendatacommunities.org/id/metropolitan-district-council/wolverhampton","718894","Sam Mace","27032141","100.00","Services - Professional Fees","130245160","20/03/2019","Visitor Economy","Art Galleries - Schools Art SLA Service","R4400"
"Wolverhampton City Council","http://opendatacommunities.org/id/metropolitan-district-council/wolverhampton","718901","iGene London Ltd","IGE/0578","3,450.00","Services - Professional Fees","130244368","08/03/2019","Public Service Reform","Coroners Service","R4400"
"Wolverhampton City Council","http://opendatacommunities.org/id/metropolitan-district-council/wolverhampton","718901","iGene London Ltd","IGE/0594","150.00","Services - Professional Fees","130244836","15/03/2019","Public Service Reform","Coroners Service","R4400"
"Wolverhampton City Council","http://opendatacommunities.org/id/metropolitan-district-council/wolverhampton","718928","Perryfields High School","P20221720190322","600.00","Grant Payments to Individuals","190577575","27/03/2019","Inclusion Support","Pupil Premium","R6402"
"Wolverhampton City Council","http://opendatacommunities.org/id/metropolitan-district-council/wolverhampton","718928","Perryfields High School","P20221720190322","600.00","Grant Payments to Individuals","190577575","27/03/2019","Inclusion Support","Pupil Premium","R6402"
"Wolverhampton City Council","http://opendatacommunities.org/id/metropolitan-district-council/wolverhampton","718942","Oakham Primary School","P20221720190322","600.00","Grant Payments to Individuals","190577575","27/03/2019","Inclusion Support","Pupil Premium","R6402"
"Wolverhampton City Council","http://opendatacommunities.org/id/metropolitan-district-council/wolverhampton","718956","Sandhu News","WRNEWS059","60.65","Books","130247510","27/03/2019","Local Economy","Whitmore Reans Library","R4309"
"Wolverhampton City Council","http://opendatacommunities.org/id/metropolitan-district-council/wolverhampton","718984","Premiere Healthcare Limited","SI-00007781","1,812.02","Equipment - Purchase","130246964","27/03/2019","Older People Provider Services","ILS Stores","R4000"
"Wolverhampton City Council","http://opendatacommunities.org/id/metropolitan-district-council/wolverhampton","718984","Premiere Healthcare Limited","SI-00007781","83.30","Equipment - Purchase","130246964","27/03/2019","Older People Provider Services","ILS Stores","R4000"
"Wolverhampton City Council","http://opendatacommunities.org/id/metropolitan-district-council/wolverhampton","718984","Premiere Healthcare Limited","SI-00007781","112.70","Equipment - Purchase","130246964","27/03/2019","Older People Provider Services","ILS Stores","R4000"
"Wolverhampton City Council","http://opendatacommunities.org/id/metropolitan-district-council/wolverhampton","718999","NRG Matters Ltd","1956","295.00","Services - Professional Fees","130243734","06/03/2019","Estates and Valuations","Estates and Valuations Team","R4400"
"Wolverhampton City Council","http://opendatacommunities.org/id/metropolitan-district-council/wolverhampton","719006","Dynniq UK Ltd","19000545UI","244.43","Equipment - R & M","130243939","06/03/2019","Operation & Maintenance of Existing Network","Traffic Signals","R4003"
"Wolverhampton City Council","http://opendatacommunities.org/id/metropolitan-district-council/wolverhampton","719006","Dynniq UK Ltd","19000539UI","23,929.70","Equipment - R & M","130243933","06/03/2019","Operation & Maintenance of Existing Network","UTC Dudley","R4003"
"Wolverhampton City Council","http://opendatacommunities.org/id/metropolitan-district-council/wolverhampton","719006","Dynniq UK Ltd","19000549UI","3,469.40","Equipment - R & M","130243943","06/03/2019","Operation & Maintenance of Existing Network","Walsall Recovery Costs","R4003"
"Wolverhampton City Council","http://opendatacommunities.org/id/metropolitan-district-council/wolverhampton","719006","Dynniq UK Ltd","19000751UI","1,809.58","Equipment - R & M","130244722","13/03/2019","Operation & Maintenance of Existing Network","Walsall Recovery Costs","R4003"
"Wolverhampton City Council","http://opendatacommunities.org/id/metropolitan-district-council/wolverhampton","719006","Dynniq UK Ltd","19000744UI","3,478.29","Equipment - R & M","130244717","13/03/2019","Operation & Maintenance of Existing Network","Traffic Signals","R4003"
"Wolverhampton City Council","http://opendatacommunities.org/id/metropolitan-district-council/wolverhampton","719006","Dynniq UK Ltd","19000745UI","1,148.82","Equipment - R & M","130244718","13/03/2019","Operation & Maintenance of Existing Network","Traffic Signals","R4003"
"Wolverhampton City Council","http://opendatacommunities.org/id/metropolitan-district-council/wolverhampton","719006","Dynniq UK Ltd","19000540UI","21,458.25","Equipment - R & M","130243934","06/03/2019","Operation & Maintenance of Existing Network","Walsall Recovery Costs","R4003"
"Wolverhampton City Council","http://opendatacommunities.org/id/metropolitan-district-council/wolverhampton","719006","Dynniq UK Ltd","19000544UI","1,680.98","Equipment - R & M","130243938","06/03/2019","Operation & Maintenance of Existing Network","Traffic Signals","R4003"
"Wolverhampton City Council","http://opendatacommunities.org/id/metropolitan-district-council/wolverhampton","719006","Dynniq UK Ltd","19000548UI","2,916.82","Equipment - R & M","130243942","06/03/2019","Operation & Maintenance of Existing Network","Walsall Recovery Costs","R4003"
"Wolverhampton City Council","http://opendatacommunities.org/id/metropolitan-district-council/wolverhampton","719006","Dynniq UK Ltd","19000541UI","24,370.35","Equipment - R & M","130243935","06/03/2019","Operation & Maintenance of Existing Network","Traffic Signals","R4003"
"Wolverhampton City Council","http://opendatacommunities.org/id/metropolitan-district-council/wolverhampton","719006","Dynniq UK Ltd","19000542UI","158.47","Equipment - R & M","130243936","06/03/2019","Operation & Maintenance of Existing Network","Traffic Signals","R4003"
"Wolverhampton City Council","http://opendatacommunities.org/id/metropolitan-district-council/wolverhampton","719006","Dynniq UK Ltd","19000547UI","653.25","Equipment - R & M","130243941","06/03/2019","Operation & Maintenance of Existing Network","Traffic Signals","R4003"
"Wolverhampton City Council","http://opendatacommunities.org/id/metropolitan-district-council/wolverhampton","719006","Dynniq UK Ltd","19000750UI","1,154.77","Equipment - R & M","130244721","13/03/2019","Operation & Maintenance of Existing Network","Walsall Recovery Costs","R4003"
"Wolverhampton City Council","http://opendatacommunities.org/id/metropolitan-district-council/wolverhampton","719006","Dynniq UK Ltd","19000746UI","2,603.38","Equipment - R & M","130244719","13/03/2019","Operation & Maintenance of Existing Network","Traffic Signals","R4003"
"Wolverhampton City Council","http://opendatacommunities.org/id/metropolitan-district-council/wolverhampton","719006","Dynniq UK Ltd","19000749UI","703.14","Equipment - R & M","130244720","13/03/2019","Operation & Maintenance of Existing Network","Walsall Recovery Costs","R4003"
"Wolverhampton City Council","http://opendatacommunities.org/id/metropolitan-district-council/wolverhampton","719006","Dynniq UK Ltd","19000546UI","653.25","Equipment - R & M","130243940","06/03/2019","Operation & Maintenance of Existing Network","Traffic Signals","R4003"
"Wolverhampton City Council","http://opendatacommunities.org/id/metropolitan-district-council/wolverhampton","719006","Dynniq UK Ltd","19000543UI","1,279.62","Equipment - R & M","130243937","06/03/2019","Operation & Maintenance of Existing Network","Traffic Signals","R4003"
"Wolverhampton City Council","http://opendatacommunities.org/id/metropolitan-district-council/wolverhampton","719006","Dynniq UK Ltd","19000773UI","725.04","Equipment - R & M","130244725","15/03/2019","Operation & Maintenance of Existing Network","Walsall Recovery Costs","R4003"
"Wolverhampton City Council","http://opendatacommunities.org/id/metropolitan-district-council/wolverhampton","719006","Dynniq UK Ltd","19000772UI","2,680.32","Equipment - R & M","130244724","15/03/2019","Operation & Maintenance of Existing Network","Walsall Recovery Costs","R4003"
"Wolverhampton City Council","http://opendatacommunities.org/id/metropolitan-district-council/wolverhampton","719006","Dynniq UK Ltd","19000774UI","1,080.20","Equipment - R & M","130244840","15/03/2019","Operation & Maintenance of Existing Network","Walsall Recovery Costs","R4003"
"Wolverhampton City Council","http://opendatacommunities.org/id/metropolitan-district-council/wolverhampton","719006","Dynniq UK Ltd","19000771UI","479.07","Equipment - R & M","130244723","15/03/2019","Operation & Maintenance of Existing Network","Walsall Recovery Costs","R4003"
"Wolverhampton City Council","http://opendatacommunities.org/id/metropolitan-district-council/wolverhampton","719012","Kirsty Webb","NEF Spring 2019 INST 2","99.62","TPP - Private Nursery Education Funding","190578170","27/03/2019","Early Years","Early Years Universal Entitlement for 3 and 4 Year Olds","R5035"
"Wolverhampton City Council","http://opendatacommunities.org/id/metropolitan-district-council/wolverhampton","719024","Shaylor Group Plc","00014068","189,314.24","Construction and Conversion","130245666","06/03/2019","-","Black Country Growth Deal � Cultural Programme","C1100"
"Wolverhampton City Council","http://opendatacommunities.org/id/metropolitan-district-council/wolverhampton","719029","Ebsford Environmental","INV-4119","11,340.00","Construction and Conversion","130244518","13/03/2019","-","Heath Town","C1100"
"Wolverhampton City Council","http://opendatacommunities.org/id/metropolitan-district-council/wolverhampton","719031","Broadmeadow Special School","DAF for L Deam & T Walsh","1,230.00","TPP - Private Nursery Education Funding","190568004","01/03/2019","Early Years","Early Years Disability Access Fund (DAF)","R5035"
"Wolverhampton City Council","http://opendatacommunities.org/id/metropolitan-district-council/wolverhampton","719031","Broadmeadow Special School","P20221720190322","600.00","Grant Payments to Individuals","190577575","27/03/2019","Inclusion Support","Pupil Premium","R6402"
"Wolverhampton City Council","http://opendatacommunities.org/id/metropolitan-district-council/wolverhampton","719031","Broadmeadow Special School","Broadmeadow Spring Term 18/19 Final Top Up Payment","87,922.00","Grant Payments","190577232","27/03/2019","Central Education","High Needs Top Up Academies","R4700"
"Wolverhampton City Council","http://opendatacommunities.org/id/metropolitan-district-council/wolverhampton","719031","Broadmeadow Special School","Broadmeadow Spring Term 18/19 Final Outreach Payment","18,678.00","Grant Payments","190577233","27/03/2019","Special Educational Needs","Outreach","R4700"
"Wolverhampton City Council","http://opendatacommunities.org/id/metropolitan-district-council/wolverhampton","719031","Broadmeadow Special School","EYPP Spring 2019 ?111.30 for Autumn 18","206.70","TPP - Private Nursery Education Funding","190578183","27/03/2019","Early Years","Early Years Pupil Premium","R5035"
"Wolverhampton City Council","http://opendatacommunities.org/id/metropolitan-district-council/wolverhampton","719045","Edward the Elder Primary School","EYPP Spring 2019 ?111.30 for Autumn 18","302.10","TPP - Private Nursery Education Funding","190578183","27/03/2019","Early Years","Early Years Pupil Premium","R5035"
"Wolverhampton City Council","http://opendatacommunities.org/id/metropolitan-district-council/wolverhampton","719045","Edward the Elder Primary School","Rising 3�s TFT Places Funding Spring 2019","1,886.40","TPP - Private Nursery Education Funding","190576188","20/03/2019","Early Years","Early Years Entitlement Funding for Disadvantaged 2 Year Olds","R5035"
"Wolverhampton City Council","http://opendatacommunities.org/id/metropolitan-district-council/wolverhampton","719045","Edward the Elder Primary School","Growth Fund Allocation. Spring 2019 Payment","2,484.28","Grant Payments","190578131","27/03/2019","Central Education","Primary ISB","R4700"
"Wolverhampton City Council","http://opendatacommunities.org/id/metropolitan-district-council/wolverhampton","719045","Edward the Elder Primary School","Edward the Elder Resource Funding Payment JE Jan to March 2019","1,057.00","Grant Payments","190575438","20/03/2019","Early Years","Early Years SEN Inclusion Fund","R4700"
"Wolverhampton City Council","http://opendatacommunities.org/id/metropolitan-district-council/wolverhampton","719045","Edward the Elder Primary School","SEN Mainstream Top Ups Autumn Term 18 - Edward the Elder Primary","382.72","Grant Payments","190570899","08/03/2019","Central Education","High Needs Top Up Academies","R4700"
"Wolverhampton City Council","http://opendatacommunities.org/id/metropolitan-district-council/wolverhampton","719045","Edward the Elder Primary School","SEN Mainstream Top Ups Spring Term 19 - Edward the Elder Primary","3,109.59","Grant Payments","190570900","08/03/2019","Central Education","High Needs Top Up Academies","R4700"
"Wolverhampton City Council","http://opendatacommunities.org/id/metropolitan-district-council/wolverhampton","719047","ATG Contract Services Ltd","8035","1,542.52","Client Transport","130246686","22/03/2019","Special Educational Needs","Special - Transport","R3042"
"Wolverhampton City Council","http://opendatacommunities.org/id/metropolitan-district-council/wolverhampton","719047","ATG Contract Services Ltd","8034","1,652.70","Client Transport","130246685","22/03/2019","Special Educational Needs","Special - Transport","R3042"
"Wolverhampton City Council","http://opendatacommunities.org/id/metropolitan-district-council/wolverhampton","719057","Keystone Granite & Memorials","16090937","216.00","Services - Professional Fees","130247365","27/03/2019","Bereavement Services","Cemeteries","R4400"
"Wolverhampton City Council","http://opendatacommunities.org/id/metropolitan-district-council/wolverhampton","719071","Slicker Recycling Ltd","156862","383.25","Cleaning Supplies and Materials","190578415","27/03/2019","Fleet Services","Fleet Management","R2705"
"Wolverhampton City Council","http://opendatacommunities.org/id/metropolitan-district-council/wolverhampton","719095","Helen Clayton: Oodles of Doodles","18","350.00","Services - Professional Fees","130247366","22/03/2019","Visitor Economy","Education And Access","R4400"
"Wolverhampton City Council","http://opendatacommunities.org/id/metropolitan-district-council/wolverhampton","719096","Comberton Primary School (Worcester. CC)","P20221720190322","600.00","Grant Payments to Individuals","190577575","27/03/2019","Inclusion Support","Pupil Premium","R6402"
"Wolverhampton City Council","http://opendatacommunities.org/id/metropolitan-district-council/wolverhampton","719107","PLANit Global Ltd","PG-364","10,500.00","Services - Professional Fees","130244726","06/03/2019","Human Resources","HR Advice","R4400"
"Wolverhampton City Council","http://opendatacommunities.org/id/metropolitan-district-council/wolverhampton","719110","View Conference Account","VIEWCONF1984","240.00","Conference Expenses","130244262","13/03/2019","Special Educational Needs","SEN Sensory Inclusion","R4611"
"Wolverhampton City Council","http://opendatacommunities.org/id/metropolitan-district-council/wolverhampton","719111","The Jane Lane School","P20221720190322","600.00","Grant Payments to Individuals","190577575","27/03/2019","Inclusion Support","Pupil Premium","R6402"
"Wolverhampton City Council","http://opendatacommunities.org/id/metropolitan-district-council/wolverhampton","719111","The Jane Lane School","P20221720190322","600.00","Grant Payments to Individuals","190577575","27/03/2019","Inclusion Support","Pupil Premium","R6402"
"Wolverhampton City Council","http://opendatacommunities.org/id/metropolitan-district-council/wolverhampton","719123","The Huntercombe Group","24405839","2,805.00","TPP - Alternative Provision of Education","130247512","13/03/2019","Special Educational Needs","SEN Education OOC","R5037"
"Wolverhampton City Council","http://opendatacommunities.org/id/metropolitan-district-council/wolverhampton","719177","Transparent Care Limited","P201081 31031920190311","8,599.80","TPP - Residential Care - Long Term","190572369","13/03/2019","Learning Disabilities Care Purchasing","LD Care Purchasing (Spot Placements)","R5400"
"Wolverhampton City Council","http://opendatacommunities.org/id/metropolitan-district-council/wolverhampton","719177","Transparent Care Limited","P201081 31031920190311","5,299.80","TPP - Residential Care - Long Term","190572369","13/03/2019","Learning Disabilities Care Purchasing","LD Care Purchasing (Spot Placements)","R5400"
"Wolverhampton City Council","http://opendatacommunities.org/id/metropolitan-district-council/wolverhampton","719177","Transparent Care Limited","P201081 31031920190311","5,449.80","TPP - Residential Care - Long Term","190572369","13/03/2019","Learning Disabilities Care Purchasing","LD Care Purchasing (Spot Placements)","R5400"
"Wolverhampton City Council","http://opendatacommunities.org/id/metropolitan-district-council/wolverhampton","719178","Lorraine Waterfield","NEF Spring 2019 INST 2","459.00","TPP - Private Nursery Education Funding","190578170","27/03/2019","Early Years","Early Years Universal Entitlement for 3 and 4 Year Olds","R5035"
"Wolverhampton City Council","http://opendatacommunities.org/id/metropolitan-district-council/wolverhampton","719179","Busy Childcare LLP","NEF Spring 2019 INST 2 Barts Busy Bees","13,479.40","TPP - Private Nursery Education Funding","190578175","27/03/2019","Early Years","Early Years Universal Entitlement for 3 and 4 Year Olds","R5035"
"Wolverhampton City Council","http://opendatacommunities.org/id/metropolitan-district-council/wolverhampton","719179","Busy Childcare LLP","NEF Spring 2019 INST 2 Gatis Grasshoppers","356.23","TPP - Private Nursery Education Funding","190578179","27/03/2019","Early Years","Early Years Universal Entitlement for 3 and 4 Year Olds","R5035"
"Wolverhampton City Council","http://opendatacommunities.org/id/metropolitan-district-council/wolverhampton","719179","Busy Childcare LLP","TFT Spring 2019 Inst 2 Ladybirds","3,568.44","TPP - Private Nursery Education Funding","190576180","20/03/2019","Early Years","Early Years Entitlement Funding for Disadvantaged 2 Year Olds","R5035"
"Wolverhampton City Council","http://opendatacommunities.org/id/metropolitan-district-council/wolverhampton","719179","Busy Childcare LLP","TFT Spring 2019 Inst 2 Merry Go Round","6,218.83","TPP - Private Nursery Education Funding","190576185","20/03/2019","Early Years","Early Years Entitlement Funding for Disadvantaged 2 Year Olds","R5035"
"Wolverhampton City Council","http://opendatacommunities.org/id/metropolitan-district-council/wolverhampton","719179","Busy Childcare LLP","TFT Spring 2019 Inst 2 Barts Busy Bees","1,875.92","TPP - Private Nursery Education Funding","190576184","20/03/2019","Early Years","Early Years Entitlement Funding for Disadvantaged 2 Year Olds","R5035"
"Wolverhampton City Council","http://opendatacommunities.org/id/metropolitan-district-council/wolverhampton","719179","Busy Childcare LLP","NEF Spring 2019 INST 2 Merry Go Round","8,816.79","TPP - Private Nursery Education Funding","190578176","27/03/2019","Early Years","Early Years Universal Entitlement for 3 and 4 Year Olds","R5035"
"Wolverhampton City Council","http://opendatacommunities.org/id/metropolitan-district-council/wolverhampton","719179","Busy Childcare LLP","EYPP Spring 2019 Merry Go Round","190.80","TPP - Private Nursery Education Funding","190578188","27/03/2019","Early Years","Early Years Pupil Premium","R5035"
"Wolverhampton City Council","http://opendatacommunities.org/id/metropolitan-district-council/wolverhampton","719179","Busy Childcare LLP","Enhanced Inclusion Funding Spring 2019 Barts Busy V Singh","1,000.00","TPP - Private Nursery Education Funding","190578221","27/03/2019","Early Years","Early Years SEN Inclusion Fund","R5035"
"Wolverhampton City Council","http://opendatacommunities.org/id/metropolitan-district-council/wolverhampton","719190","Francis Webbs Accountancy","93809","640.00","Services - Professional Fees","130246148","27/03/2019","Local Economy","GEN Y City Transnational","R4400"
"Wolverhampton City Council","http://opendatacommunities.org/id/metropolitan-district-council/wolverhampton","719197","Fire Protection Association","INV102974","1,460.00","Training Expenses","130246965","27/03/2019","Public Service Reform","Centralised Training","R1650"
"Wolverhampton City Council","http://opendatacommunities.org/id/metropolitan-district-council/wolverhampton","719202","The Bigger Picture Education Service","16097327","84.00","Services - Professional Fees","130244841","20/03/2019","Inclusion Support","Pupil Premium","R4400"
"Wolverhampton City Council","http://opendatacommunities.org/id/metropolitan-district-council/wolverhampton","719202","The Bigger Picture Education Service","16097327","400.00","Services - Professional Fees","130244841","20/03/2019","Inclusion Support","Pupil Premium","R4400"
"Wolverhampton City Council","http://opendatacommunities.org/id/metropolitan-district-council/wolverhampton","719202","The Bigger Picture Education Service","16097327","60.00","Services - Professional Fees","130244841","20/03/2019","Inclusion Support","Pupil Premium","R4400"
"Wolverhampton City Council","http://opendatacommunities.org/id/metropolitan-district-council/wolverhampton","719208","Bilston Business Improve. District Ltd","INV-0018","5,000.00","TPP - Business Improvement District (BID) Levy","190576623","22/03/2019","Revenues & Benefits","Bilston Business Improvement District","R5152"
"Wolverhampton City Council","http://opendatacommunities.org/id/metropolitan-district-council/wolverhampton","719212","Evolution Childcare @Scholars House","NEF Spring 2019 INST 2","13,220.96","TPP - Private Nursery Education Funding","190578170","27/03/2019","Early Years","Early Years Universal Entitlement for 3 and 4 Year Olds","R5035"
"Wolverhampton City Council","http://opendatacommunities.org/id/metropolitan-district-council/wolverhampton","719212","Evolution Childcare @Scholars House","Enhanced Inclusion Funding Spring 2019 K Kutsanedzie","1,000.00","TPP - Private Nursery Education Funding","190578215","27/03/2019","Early Years","Early Years SEN Inclusion Fund","R5035"
"Wolverhampton City Council","http://opendatacommunities.org/id/metropolitan-district-council/wolverhampton","719212","Evolution Childcare @Scholars House","0000000575","313.00","Services - Professional Fees","130238505","06/03/2019","Children & Young People In Care","Looked After Team 1","R4400"
"Wolverhampton City Council","http://opendatacommunities.org/id/metropolitan-district-council/wolverhampton","719212","Evolution Childcare @Scholars House","00000000935","330.00","Services - Professional Fees","130238312","06/03/2019","Children & Young People In Care","Looked After Team 1","R4400"
"Wolverhampton City Council","http://opendatacommunities.org/id/metropolitan-district-council/wolverhampton","719212","Evolution Childcare @Scholars House","P20169820190315","100.00","Grant Payments to Individuals","190574636","20/03/2019","Inclusion Support","Pupil Premium","R6402"
"Wolverhampton City Council","http://opendatacommunities.org/id/metropolitan-district-council/wolverhampton","719212","Evolution Childcare @Scholars House","TFT Spring 2019 Inst 2","3,694.20","TPP - Private Nursery Education Funding","190576181","20/03/2019","Early Years","Early Years Entitlement Funding for Disadvantaged 2 Year Olds","R5035"
"Wolverhampton City Council","http://opendatacommunities.org/id/metropolitan-district-council/wolverhampton","719221","Free Trade Agency","1228","1,500.00","Services - Professional Fees","130246288","06/03/2019","Visitor Economy","The Little Civic","R4400"
"Wolverhampton City Council","http://opendatacommunities.org/id/metropolitan-district-council/wolverhampton","719239","Cartello Ambulance","032786","147.00","Client Transport","130246289","27/03/2019","Adults Assessment & Care Management West","Adult Services � West","R3042"
"Wolverhampton City Council","http://opendatacommunities.org/id/metropolitan-district-council/wolverhampton","719239","Cartello Ambulance","032588","147.00","Client Transport","130248994","27/03/2019","Adults Assessment & Care Management North","Adult Services � North","R3042"
"Wolverhampton City Council","http://opendatacommunities.org/id/metropolitan-district-council/wolverhampton","719291","Amythyst Academy Trust (Moreton School)","P20221720190322","600.00","Grant Payments to Individuals","190577575","27/03/2019","Inclusion Support","Pupil Premium","R6402"
"Wolverhampton City Council","http://opendatacommunities.org/id/metropolitan-district-council/wolverhampton","719291","Amythyst Academy Trust (Moreton School)","P20221720190322","600.00","Grant Payments to Individuals","190577575","27/03/2019","Inclusion Support","Pupil Premium","R6402"
"Wolverhampton City Council","http://opendatacommunities.org/id/metropolitan-district-council/wolverhampton","719291","Amythyst Academy Trust (Moreton School)","P20221720190322","600.00","Grant Payments to Individuals","190577575","27/03/2019","Inclusion Support","Pupil Premium","R6402"
"Wolverhampton City Council","http://opendatacommunities.org/id/metropolitan-district-council/wolverhampton","719291","Amythyst Academy Trust (Moreton School)","P20221720190322","600.00","Grant Payments to Individuals","190577575","27/03/2019","Inclusion Support","Pupil Premium","R6402"
"Wolverhampton City Council","http://opendatacommunities.org/id/metropolitan-district-council/wolverhampton","719291","Amythyst Academy Trust (Moreton School)","P20221720190322","600.00","Grant Payments to Individuals","190577575","27/03/2019","Inclusion Support","Pupil Premium","R6402"
"Wolverhampton City Council","http://opendatacommunities.org/id/metropolitan-district-council/wolverhampton","719291","Amythyst Academy Trust (Moreton School)","P20221720190322","600.00","Grant Payments to Individuals","190577575","27/03/2019","Inclusion Support","Pupil Premium","R6402"
"Wolverhampton City Council","http://opendatacommunities.org/id/metropolitan-district-council/wolverhampton","719291","Amythyst Academy Trust (Moreton School)","P20221720190322","600.00","Grant Payments to Individuals","190577575","27/03/2019","Inclusion Support","Pupil Premium","R6402"
"Wolverhampton City Council","http://opendatacommunities.org/id/metropolitan-district-council/wolverhampton","719291","Amythyst Academy Trust (Moreton School)","P20221720190322","600.00","Grant Payments to Individuals","190577575","27/03/2019","Inclusion Support","Pupil Premium","R6402"
"Wolverhampton City Council","http://opendatacommunities.org/id/metropolitan-district-council/wolverhampton","719291","Amythyst Academy Trust (Moreton School)","SEN Mainstream Top Ups Spring Term 19 - Moreton","17,621.00","Grant Payments","190570873","08/03/2019","Central Education","High Needs Top Up Academies","R4700"
"Wolverhampton City Council","http://opendatacommunities.org/id/metropolitan-district-council/wolverhampton","719291","Amythyst Academy Trust (Moreton School)","SEN Mainstream Top Ups Autumn Term 18 - Moreton","16,999.08","Grant Payments","190570872","08/03/2019","Central Education","High Needs Top Up Academies","R4700"
"Wolverhampton City Council","http://opendatacommunities.org/id/metropolitan-district-council/wolverhampton","719292","Bushbury Lane Academy (Oxley Primary)","EYPP Spring 2019  ?556.50 for Autumn 18","1,033.50","TPP - Private Nursery Education Funding","190578184","27/03/2019","Early Years","Early Years Pupil Premium","R5035"
"Wolverhampton City Council","http://opendatacommunities.org/id/metropolitan-district-council/wolverhampton","719292","Bushbury Lane Academy (Oxley Primary)","P20221720190322","600.00","Grant Payments to Individuals","190577575","27/03/2019","Inclusion Support","Pupil Premium","R6402"
"Wolverhampton City Council","http://opendatacommunities.org/id/metropolitan-district-council/wolverhampton","719292","Bushbury Lane Academy (Oxley Primary)","P20221720190322","600.00","Grant Payments to Individuals","190577575","27/03/2019","Inclusion Support","Pupil Premium","R6402"
"Wolverhampton City Council","http://opendatacommunities.org/id/metropolitan-district-council/wolverhampton","719292","Bushbury Lane Academy (Oxley Primary)","P20221720190322","600.00","Grant Payments to Individuals","190577575","27/03/2019","Inclusion Support","Pupil Premium","R6402"
"Wolverhampton City Council","http://opendatacommunities.org/id/metropolitan-district-council/wolverhampton","719292","Bushbury Lane Academy (Oxley Primary)","SEN Mainstream Top Ups Autumn Term 18 - Bushbury Lane Academy","5,979.98","Grant Payments","190570913","08/03/2019","Central Education","High Needs Top Up Academies","R4700"
"Wolverhampton City Council","http://opendatacommunities.org/id/metropolitan-district-council/wolverhampton","719292","Bushbury Lane Academy (Oxley Primary)","SEN Mainstream Top Ups Spring Term 19 - Bushbury Lane Academy","6,716.46","Grant Payments","190570914","08/03/2019","Central Education","High Needs Top Up Academies","R4700"
"Wolverhampton City Council","http://opendatacommunities.org/id/metropolitan-district-council/wolverhampton","719311","Grange Park Primary School","P20169820190315","600.00","Grant Payments to Individuals","190574636","20/03/2019","Inclusion Support","Pupil Premium","R6402"
"Wolverhampton City Council","http://opendatacommunities.org/id/metropolitan-district-council/wolverhampton","719313","Rent Me Now","704PARKFIELD0119","500.00","No Recourse to Public Funds","130242526","13/03/2019","Strengthening Families","Child Assessment Team","R6314"
"Wolverhampton City Council","http://opendatacommunities.org/id/metropolitan-district-council/wolverhampton","719313","Rent Me Now","704PARKFIELD0319","500.00","No Recourse to Public Funds","130242528","13/03/2019","Strengthening Families","Child Assessment Team","R6314"
"Wolverhampton City Council","http://opendatacommunities.org/id/metropolitan-district-council/wolverhampton","719313","Rent Me Now","704PARKFIELD0219","500.00","No Recourse to Public Funds","130242527","13/03/2019","Strengthening Families","Child Assessment Team","R6314"
"Wolverhampton City Council","http://opendatacommunities.org/id/metropolitan-district-council/wolverhampton","719313","Rent Me Now","704PARKFIELD1218","500.00","No Recourse to Public Funds","130242531","13/03/2019","Strengthening Families","Child Assessment Team","R6314"
"Wolverhampton City Council","http://opendatacommunities.org/id/metropolitan-district-council/wolverhampton","719353","Parkside Middle School","P20221720190322","600.00","Grant Payments to Individuals","190577575","27/03/2019","Inclusion Support","Pupil Premium","R6402"
"Wolverhampton City Council","http://opendatacommunities.org/id/metropolitan-district-council/wolverhampton","719353","Parkside Middle School","P20221720190322","600.00","Grant Payments to Individuals","190577575","27/03/2019","Inclusion Support","Pupil Premium","R6402"
"Wolverhampton City Council","http://opendatacommunities.org/id/metropolitan-district-council/wolverhampton","719380","BHR Pharmaceuticals Ltd","975660","1,000.00","Equipment - Purchase","130245162","20/03/2019","Healthy Life Expectancy","Healthy Life Expectancy","R4000"
"Wolverhampton City Council","http://opendatacommunities.org/id/metropolitan-district-council/wolverhampton","719382","<!DOCTYPE HTML PUBLIC "-//W3C//DTD HTML 3.2 Final//EN">
<HTML>
<HEAD>
<TITLE>Application Firewall Alert</TITLE>
<META NAME="ROBOTS" CONTENT="NOINDEX">
</HEAD>
<BODY text="#000000" vlink="#FF3300" link="#FF3300" bgcolor="#ffffff">
<TABLE cellspacing="5" cellpadding="3" width="410">
<TR>
<TD align="left">
<FONT face="Verdana,Arial,Helvetica" size="2">
<FONT size="3"><B>Application Firewall Alert</B></FONT><BR><BR><BR>
Your request triggered an alert! If you feel that you have received this page in error, please contact the administrator of this web site.
<BR>
<HR>
</TD>
</TR>
</TABLE>
</BODY>
</HTML>